Department family,Entity,Date,Expense type,Expense area,Supplier,Transaction number,  Amount  ,VAT registration number
"Department for Culture, Media & Sport",UK Sport,16/03/2021,Grant,Summer - Olympic,British Basketball Federation,10941,"45,545.00",
"Department for Culture, Media & Sport",UK Sport,16/03/2021,Grant,Summer - Olympic,Uk Athletics,10944,"197,000.00",
"Department for Culture, Media & Sport",UK Sport,16/03/2021,Grant,Performance additions to WCPP,English Institute of Sport Company,10945,"100,000.00",
"Department for Culture, Media & Sport",UK Sport,16/03/2021,Grant,Performance additions to WCPP,English Institute of Sport Company,10947,"41,900.00",
"Department for Culture, Media & Sport",UK Sport,16/03/2021,Grant,World Class Operations,British Paralympic Performance Services,10948,"50,000.00",
"Department for Culture, Media & Sport",UK Sport,29/03/2021,Pension - Additional Contribution,Finance-Staff,LPFA (Pension Fund),10956,"400,000.00",
"Department for Culture, Media & Sport",UK Sport,31/03/2021,Grant,Performance Partnerships,GB Sport Media Ltd,10959,"40,000.00",
"Department for Culture, Media & Sport",UK Sport,01/03/2021,Programme,Governance Programme,NSPCC  C.P.T.G,31709,"26,649.56",
"Department for Culture, Media & Sport",UK Sport,26/02/2021,Training,Performance,Changing Minds Ltd,31717,"59,308.63",
"Department for Culture, Media & Sport",UK Sport,28/02/2021,Security/Backup/Recovery,ICT Managed Services,Softcat Ltd,31718,"31,638.10",
"Department for Culture, Media & Sport",UK Sport,31/03/2021,Programme,Talent ID,True Digital Limited,31745,"44,000.00",
"Department for Culture, Media & Sport",UK Sport,17/03/2021,Programme,Communications Programme,Canvas8 Ltd,31792,"34,908.38",
"Department for Culture, Media & Sport",UK Sport,08/03/2021,Grant,Summer - Olympic,British Rowing,21405148,"105,666.00",
"Department for Culture, Media & Sport",UK Sport,08/03/2021,Grant,Summer - Olympic,British Equestrian Federation,21405150,"160,647.00",
"Department for Culture, Media & Sport",UK Sport,08/03/2021,Grant,Summer - Olympic,British Swimming,21405154,"153,402.00",
"Department for Culture, Media & Sport",UK Sport,08/03/2021,Grant,Summer - Olympic,British Triathlon Federation,21405157,"38,929.00",
"Department for Culture, Media & Sport",UK Sport,08/03/2021,Grant,Summer - Olympic,Uk Athletics,21405158,"371,752.00",
"Department for Culture, Media & Sport",UK Sport,08/03/2021,Grant,Summer - Olympic,British Judo Association,21405161,"92,020.00",
"Department for Culture, Media & Sport",UK Sport,08/03/2021,Grant,Summer - Olympic,England Hockey,21405164,"224,297.00",
"Department for Culture, Media & Sport",UK Sport,08/03/2021,Grant,Summer - Olympic,British Gymnastics,21405166,"244,572.00",
"Department for Culture, Media & Sport",UK Sport,08/03/2021,Grant,Summer - Paralympic,British Rowing,21405169,"27,953.00",
"Department for Culture, Media & Sport",UK Sport,08/03/2021,Grant,Summer - Olympic,GB Taekwondo,21405173,"216,065.00",
"Department for Culture, Media & Sport",UK Sport,08/03/2021,Grant,Summer - Olympic,British Shooting,21405174,"97,220.00",
"Department for Culture, Media & Sport",UK Sport,08/03/2021,Grant,Performance additions to WCPP,English Institute of Sport Company,21405179,"32,803.00",
"Department for Culture, Media & Sport",UK Sport,08/03/2021,Grant,Summer - Paralympic,British Table Tennis Association for the,21405180,"44,183.00",
"Department for Culture, Media & Sport",UK Sport,08/03/2021,Grant,Summer - Olympic,British Canoeing,21405181,"129,446.00",
"Department for Culture, Media & Sport",UK Sport,08/03/2021,Grant,Summer - Olympic,sportscotland,21405182,"120,000.00",
"Department for Culture, Media & Sport",UK Sport,08/03/2021,Grant,Summer - Paralympic,British Swimming,21405183,"121,174.00",
"Department for Culture, Media & Sport",UK Sport,08/03/2021,Grant,EIS- Investment,English Institute of Sport Company,21405184,"1,061,885.00",
"Department for Culture, Media & Sport",UK Sport,08/03/2021,Grant,EIS- Investment,English Institute of Sport Company,21405191,"192,393.00",
"Department for Culture, Media & Sport",UK Sport,08/03/2021,Grant,Summer - Olympic,Sports Council for Wales,21405193,"52,000.00",
"Department for Culture, Media & Sport",UK Sport,08/03/2021,Grant,Summer - Paralympic,Pentathlon GB,21405195,"26,000.00",
"Department for Culture, Media & Sport",UK Sport,08/03/2021,Grant,Summer - Olympic,England Hockey,21405196,"317,500.00",
"Department for Culture, Media & Sport",UK Sport,08/03/2021,Grant,Summer - Paralympic,United Kingdom Boccia Federation Ltd.,21405202,"27,349.00",
"Department for Culture, Media & Sport",UK Sport,08/03/2021,Grant,Summer - Olympic,Uk Athletics,21405203,"41,807.00",
"Department for Culture, Media & Sport",UK Sport,08/03/2021,Grant,Summer - Olympic,British Canoeing,21405204,"63,839.00",
"Department for Culture, Media & Sport",UK Sport,08/03/2021,Grant,Summer - Olympic,British Cycling Federation,21405205,"368,302.00",
"Department for Culture, Media & Sport",UK Sport,08/03/2021,Grant,Summer - Olympic,British Cycling Federation,21405206,"99,447.00",
"Department for Culture, Media & Sport",UK Sport,08/03/2021,Grant,Summer - Olympic,British Amateur Boxing Association Ltd,21405207,"59,128.00",
"Department for Culture, Media & Sport",UK Sport,08/03/2021,Grant,Summer - Paralympic,Great Britain Wheelchair Basketball Asso,21405209,"69,541.00",
"Department for Culture, Media & Sport",UK Sport,08/03/2021,Grant,Summer - Paralympic,British Weight Lifting - Paralympic,21405212,"26,406.00",
"Department for Culture, Media & Sport",UK Sport,08/03/2021,Grant,Summer - Paralympic,British Equestrian Federation,21405216,"63,801.00",
"Department for Culture, Media & Sport",UK Sport,08/03/2021,Grant,Summer - Paralympic,British Canoeing,21405217,"30,020.00",
"Department for Culture, Media & Sport",UK Sport,08/03/2021,Grant,Summer - Paralympic,British Cycling Federation,21405220,"102,277.00",
"Department for Culture, Media & Sport",UK Sport,08/03/2021,Grant,Summer - Paralympic,Uk Athletics,21405221,"228,259.00",
"Department for Culture, Media & Sport",UK Sport,08/03/2021,Grant,Summer - Paralympic,Grand National Archery Society,21405223,"53,260.00",
"Department for Culture, Media & Sport",UK Sport,08/03/2021,Grant,Summer - Olympic,British Swimming,21405225,"305,554.00",
"Department for Culture, Media & Sport",UK Sport,08/03/2021,Grant,Summer - Olympic,British Shooting,21405226,"37,107.00",
"Department for Culture, Media & Sport",UK Sport,08/03/2021,Grant,Summer - Olympic,Royal Yachting Association,21405227,"289,686.00",
"Department for Culture, Media & Sport",UK Sport,08/03/2021,Grant,Summer - Olympic,British Rowing,21405228,"244,739.00",
